Department Family,Entity,Date,Expenses Type,Expense Area,Supplier,Transaction Number,  Total  ,
Department of Health ,The Christie NHS Foundation Trust,21/10/2021, Drugs, Drugs,HEALTHCARE AT HOME LTD,677942,"28,110.00",
Department of Health ,The Christie NHS Foundation Trust,14/10/2021, Drugs, Drugs,HEALTHCARE AT HOME LTD,677944,"29,932.00",
Department of Health ,The Christie NHS Foundation Trust,07/10/2021, Drugs, Drugs,HEALTHCARE AT HOME LTD,677506,"29,984.00",
Department of Health ,The Christie NHS Foundation Trust,14/10/2021, Drugs, Drugs,HEALTHCARE AT HOME LTD,677939,"37,078.00",
Department of Health ,The Christie NHS Foundation Trust,28/10/2021, Drugs, Drugs,BAXTER HEALTHCARE LTD,677502,"50,311.20",
Department of Health ,The Christie NHS Foundation Trust,28/10/2021, Drugs, Drugs,BAXTER HEALTHCARE LTD,677362,"54,206.39",
Department of Health ,The Christie NHS Foundation Trust,07/10/2021, Drugs, Drugs,BAXTER HEALTHCARE LTD,675872,"63,350.63",
Department of Health ,The Christie NHS Foundation Trust,14/10/2021, Drugs, Drugs,BAXTER HEALTHCARE LTD,676812,"66,306.37",
Department of Health ,The Christie NHS Foundation Trust,28/10/2021, Drugs, Drugs,BAXTER HEALTHCARE LTD,677361,"69,149.48",
Department of Health ,The Christie NHS Foundation Trust,07/10/2021, Drugs, Drugs,BAXTER HEALTHCARE LTD,675863,"69,813.37",
Department of Health ,The Christie NHS Foundation Trust,28/10/2021, Drugs, Drugs,ALCURA UK LIMITED,679130,"70,094.59",
Department of Health ,The Christie NHS Foundation Trust,21/10/2021, Drugs, Drugs,ALCURA UK LIMITED,678497,"74,016.88",
Department of Health ,The Christie NHS Foundation Trust,21/10/2021, Drugs, Drugs,BAXTER HEALTHCARE LTD,677360,"80,656.24",
Department of Health ,The Christie NHS Foundation Trust,07/10/2021, Drugs, Drugs,BAXTER HEALTHCARE LTD,675873,"81,895.45",
Department of Health ,The Christie NHS Foundation Trust,07/10/2021, Drugs, Drugs,TAMESIDE AND GLOSSOP INTEGRATED CARE NHS,674215,"83,034.63",
Department of Health ,The Christie NHS Foundation Trust,07/10/2021, Drugs, Drugs,BAXTER HEALTHCARE LTD,676321,"84,891.46",
Department of Health ,The Christie NHS Foundation Trust,28/10/2021, Drugs, Drugs,BAXTER HEALTHCARE LTD,677368,"91,261.10",
Department of Health ,The Christie NHS Foundation Trust,28/10/2021, Drugs, Drugs,BAXTER HEALTHCARE LTD,677900,"93,394.70",
Department of Health ,The Christie NHS Foundation Trust,14/10/2021, Drugs, Drugs,BAXTER HEALTHCARE LTD,676398,"93,593.83",
Department of Health ,The Christie NHS Foundation Trust,21/10/2021, Drugs, Drugs,BAXTER HEALTHCARE LTD,676945,"94,373.15",
Department of Health ,The Christie NHS Foundation Trust,07/10/2021, Drugs, Drugs,BAXTER HEALTHCARE LTD,675874,"94,660.37",
Department of Health ,The Christie NHS Foundation Trust,07/10/2021, Drugs, Drugs,TAMESIDE AND GLOSSOP INTEGRATED CARE NHS,672321,"109,024.18",
Department of Health ,The Christie NHS Foundation Trust,07/10/2021, Drugs, Drugs,EAST CHESHIRE NHS TRUST,669831,"112,109.29",
Department of Health ,The Christie NHS Foundation Trust,07/10/2021, Drugs, Drugs,EAST CHESHIRE NHS TRUST,665359,"114,487.68",
Department of Health ,The Christie NHS Foundation Trust,14/10/2021, Drugs, Drugs,EAST CHESHIRE NHS TRUST,676172,"116,144.74",
Department of Health ,The Christie NHS Foundation Trust,07/10/2021, Drugs, Drugs,EAST CHESHIRE NHS TRUST,673927,"116,860.39",
Department of Health ,The Christie NHS Foundation Trust,21/10/2021, Drugs, Drugs,BAXTER HEALTHCARE LTD,676843,"128,218.00",
Department of Health ,The Christie NHS Foundation Trust,07/10/2021, Drugs, Drugs,MID CHESHIRE HOSPITALS NHS FT,671412,"154,838.40",
Department of Health ,The Christie NHS Foundation Trust,07/10/2021, Drugs, Drugs,MID CHESHIRE HOSPITALS NHS FT,667286,"154,885.55",
Department of Health ,The Christie NHS Foundation Trust,14/10/2021, Drugs, Drugs,MID CHESHIRE HOSPITALS NHS FT,675143,"163,404.45",
Department of Health ,The Christie NHS Foundation Trust,21/10/2021, Drugs, Drugs,BAXTER HEALTHCARE LTD,676844,"167,286.60",
Department of Health ,The Christie NHS Foundation Trust,07/10/2021, Drugs, Drugs,MID CHESHIRE HOSPITALS NHS FT,673724,"172,290.33",
Department of Health ,The Christie NHS Foundation Trust,07/10/2021, Drugs, Drugs,NOVARTIS PHARMACEUTICALS UK LTD,675765,"257,184.00",
Department of Health ,The Christie NHS Foundation Trust,07/10/2021, Drugs, Drugs,BAXTER HEALTHCARE LTD,677369,"358,148.40",
Department of Health ,The Christie NHS Foundation Trust,07/10/2021,Subscription Fees, Network Services,BRAINLAB LTD,675717,"28,051.86",
Department of Health ,The Christie NHS Foundation Trust,07/10/2021,Blood Products, Network Services,NHS BLOOD AND TRANSPLANT,676169,"28,346.66",
Department of Health ,The Christie NHS Foundation Trust,14/10/2021,Chemotherapy SLA Invoice - Month 6, Network Services,STOCKPORT NHS FOUNDATION TRUST,676408,"30,717.00",
Department of Health ,The Christie NHS Foundation Trust,07/10/2021,Blood Products, Network Services,NHS BLOOD AND TRANSPLANT,675694,"39,031.73",
Department of Health ,The Christie NHS Foundation Trust,21/10/2021,Patient Accomodation, Network Services,STAYCITY MANCHESTER LTD,677510,"71,572.44",
Department of Health ,The Christie NHS Foundation Trust,21/10/2021,Electricity Invoice - August 2021, Network Services,EDF ENERGY,677538,"87,414.39",
Department of Health ,The Christie NHS Foundation Trust,21/10/2021,Electricity Invoice - July 2021, Network Services,EDF ENERGY,677533,"88,965.80",
Department of Health ,The Christie NHS Foundation Trust,21/10/2021,Electricity Invoice - September 2021, Network Services,EDF ENERGY,677539,"89,804.41",
Department of Health ,The Christie NHS Foundation Trust,21/10/2021,Electricity Invoice - August 2021, Network Services,EDF ENERGY,677536,"93,505.79",
Department of Health ,The Christie NHS Foundation Trust,15/10/2021,Blood Products, Network Services,DD NHS BLOOD AND TRANSPLANT,676167,"160,265.00",
Department of Health ,The Christie NHS Foundation Trust,07/10/2021,Clinical Activity Charge, Network Services,WRIGHTINGTON WIGAN AND LEIGH NHS FT,676739,"277,691.07",
Department of Health ,The Christie NHS Foundation Trust,21/10/2021,Pathology Testing Services - August 2021, Christie Pathology Partner,THE CHRISTIE PATHOLOGY PARTNERSHIP LLP,677084,"485,803.82",
Department of Health ,The Christie NHS Foundation Trust,15/10/2021,"CNST, LTPS & PES - October 2021",Quality & Standards,DD NHS RESOLUTION,678063,"177,439.90",
Department of Health ,The Christie NHS Foundation Trust,28/10/2021,External Audit Fee, Finance & Business Developm,GRANT THORNTON UK LLP,678629,"27,000.00",
Department of Health ,The Christie NHS Foundation Trust,14/10/2021,Salford Fixed SLA & Rental Building - September 2021,Estates & Facilities,NORTHERN CARE ALLIANCE NHS FT,676190,"25,974.41",
Department of Health ,The Christie NHS Foundation Trust,07/10/2021,Gas Charges - Feb 2021,Estates & Facilities,VITAL ENERGI SOLUTIONS LTD,675989,"70,589.92",
Department of Health ,The Christie NHS Foundation Trust,07/10/2021,Rates,Estates & Facilities,DD M/CR CITY COUNCIL (RATES),677868,"75,629.00",
Department of Health ,The Christie NHS Foundation Trust,07/10/2021,Water Bill,Estates & Facilities,WATER PLUS,674616,"136,249.13",
Department of Health ,The Christie NHS Foundation Trust,21/10/2021,Electricity Charges - June 2021,Estates & Facilities,VITAL ENERGI SOLUTIONS LTD,672650,"233,528.86",
Department of Health ,The Christie NHS Foundation Trust,21/10/2021,Electricity Charges - July 2021,Estates & Facilities,VITAL ENERGI SOLUTIONS LTD,674728,"236,443.93",
Department of Health ,The Christie NHS Foundation Trust,21/10/2021,Electricity Charges - April 2021,Estates & Facilities,VITAL ENERGI SOLUTIONS LTD,668234,"263,344.18",
Department of Health ,The Christie NHS Foundation Trust,21/10/2021,Patient Treatment, Other Income Levies and Gra,THE CHRISTIE CLINIC (HCA),677410,"134,262.50",
Department of Health ,The Christie NHS Foundation Trust,07/10/2021,Drugs,Christie Medical Physics,ALLIANCE MEDICAL RADIOPHARMACY LIMITED,675738,"27,051.84",
Department of Health ,The Christie NHS Foundation Trust,21/10/2021,Medical Equipment,Christie Medical Physics,ADVANCED ACCELERATOR APPLICATIONS LTD,677026,"37,002.00",
Department of Health ,The Christie NHS Foundation Trust,14/10/2021,PET-CT Recharge - August 2021,Christie Medical Physics,ALLIANCE MEDICAL LTD,677066,"93,570.00",
Department of Health ,The Christie NHS Foundation Trust,21/10/2021,PET-CT Appointments - Outsourced - August 2021,Christie Medical Physics,ALLIANCE MEDICAL LTD,677068,"145,515.00",
Department of Health ,The Christie NHS Foundation Trust,21/10/2021,PET-CT Appointments - Outsourced - July 2021,Christie Medical Physics,ALLIANCE MEDICAL LTD,677070,"197,835.00",
Department of Health ,The Christie NHS Foundation Trust,28/10/2021,PET-CT Appointments - Outsourced - September 2021,Christie Medical Physics,ALLIANCE MEDICAL LTD,677195,"213,095.00",
Department of Health ,The Christie NHS Foundation Trust,21/10/2021,PET-CT Appointments - Outsourced - June 2021,Christie Medical Physics,ALLIANCE MEDICAL LTD,677072,"221,270.00",
Department of Health ,The Christie NHS Foundation Trust,07/10/2021,Clinical Trial, Research & Innovation,UNIVERSITY OF MANCHESTER,656749,"43,728.00",
Department of Health ,The Christie NHS Foundation Trust,14/10/2021,Computer Equipment, Capital,INSIGHT DIRECT (UK) LTD,676631,"26,179.44",
Department of Health ,The Christie NHS Foundation Trust,14/10/2021,Service Contract, Capital,INSIGHT DIRECT (UK) LTD,676630,"28,000.00",
Department of Health ,The Christie NHS Foundation Trust,14/10/2021,Medical Equipment, Capital,STERIS IMS LTD,670680,"28,901.61",
Department of Health ,The Christie NHS Foundation Trust,21/10/2021,Medical Equipment, Capital,XIEL LTD,676782,"30,600.78",
Department of Health ,The Christie NHS Foundation Trust,21/10/2021,Professional Services Fee, Capital,AVISON YOUNG (GVA),677736,"34,680.00",
Department of Health ,The Christie NHS Foundation Trust,21/10/2021,Medical Equipment, Capital,ONCOLOGY IMAGING SYSTEMS LTD,677207,"38,421.60",
Department of Health ,The Christie NHS Foundation Trust,21/10/2021,Medical Equipment, Capital,ONCOLOGY IMAGING SYSTEMS LTD,676980,"44,271.60",
Department of Health ,The Christie NHS Foundation Trust,21/10/2021,Medical Equipment, Capital,ONCOLOGY IMAGING SYSTEMS LTD,677205,"54,135.60",
Department of Health ,The Christie NHS Foundation Trust,28/10/2021,Project Management Fee, Capital,ARCADIS LLP,676725,"58,160.04",
Department of Health ,The Christie NHS Foundation Trust,28/10/2021,Data Centre Colocation Project, Capital,INSIGHT DIRECT (UK) LTD,679301,"165,511.20",
Department of Health ,The Christie NHS Foundation Trust,28/10/2021,Energy Bill, Capital,VITAL ENERGI SOLUTIONS LTD,677607,"192,229.97",
Department of Health ,The Christie NHS Foundation Trust,14/10/2021,Multi-Tiered Car Park Works, Capital,VINCI CONSTRUCTION UK LIMITED,677829,"1,002,380.00",
Department of Health ,The Christie NHS Foundation Trust,21/10/2021,Macclesfield Christie Construction Works, Capital,VINCI CONSTRUCTION UK LIMITED,677981,"1,500,175.20",
Department of Health ,The Christie NHS Foundation Trust,07/10/2021,Paterson Redevelopment Project Construction Works, Capital,INTEGRATED HEALTH PROJECTS,677304,"4,644,032.03",
Department of Health ,The Christie NHS Foundation Trust,07/10/2021,GM Cancer Diagnosis Work,Manchester Cancer,VIADUCT CARE CIC,676944,"100,000.00",
Department of Health ,The Christie NHS Foundation Trust,28/10/2021,RDC Programme Services,Manchester Cancer,NORTHERN CARE ALLIANCE NHS FT,678793,"527,250.00",
Department of Health ,The Christie NHS Foundation Trust,28/10/2021,License User Subscription Renewal, Digital Services,ODYSSEY INTERACTIVE LTD T/A INTERACT,673905,"26,496.00",
Department of Health ,The Christie NHS Foundation Trust,28/10/2021,Online Prescribing Licence Fee, Digital Services,IQ HEALTH TECH LTD,677227,"32,500.00",
Department of Health ,The Christie NHS Foundation Trust,14/10/2021,Computer Equipment, Digital Services,XMA LTD,676356,"43,500.00",
Department of Health ,The Christie NHS Foundation Trust,28/10/2021,Application Services, Digital Services,INTEROPERABILITY HEALTH UK LIMITED,677627,"52,044.00",
Department of Health ,The Christie NHS Foundation Trust,14/10/2021,FFT Surveys Package, Digital Services,SOFTCAT PLC,676347,"105,666.68",
Department of Health ,The Christie NHS Foundation Trust,14/10/2021,NHS Supply Chain,All Wards and Departments,NHS SUPPLY CHAIN,677723,"70,302.44",
Department of Health ,The Christie NHS Foundation Trust,14/10/2021,NHS Supply Chain,All Wards and Departments,NHS SUPPLY CHAIN,677725,"80,327.12",
Department of Health ,The Christie NHS Foundation Trust,21/10/2021,NHS Supply Chain,All Wards and Departments,NHS SUPPLY CHAIN,677726,"81,774.45",
